bitfinex/quotes_ETHUSD_20220111
["timestamp","ask_amount","ask_price","bid_price","bid_amount"]
[1641911379552,2.92491166,3093.6,3092.4,0.98794091]
[1641911379553,0.00227369,3093.0,3092.4,0.98794091]
[1641911379749,0.00227369,3093.0,3092.8,1.2880753]
[1641911379952,4.7992866,3093.3,3092.8,3.5380753]
[1641911379953,0.00170527,3092.9,3092.8,3.5380753]
[1641911380150,0.00170527,3092.9,3092.8,1.2880753]
[1641911380548,0.00170527,3092.9,3092.8,1.31286566]
[1641911380748,0.00170527,3092.9,3092.8,2.2647657]
[1641911380951,4.7992866,3093.3,3092.9,6.75]
[1641911381148,0.01227622,3094.4,3092.9,6.75]
[1641911381149,5.06816523,3093.4,3092.9,0.3]
[1641911381350,5.06816523,3093.4,3093.3,1.23942715]
[1641911381648,5.06816523,3093.4,3092.8,0.3]
[1641911381649,0.00284212,3093.4,3092.5,0.388]
[1641911382050,0.00227369,3093.3,3092.6,0.00170527]
[1641911382249,0.00227369,3093.3,3092.7,1.61615]
[1641911382450,3.31386233,3094.2,3092.7,1.61615]
[1641911382451,0.00170527,3093.2,3092.7,1.60889993]
[1641911382650,0.00170527,3093.2,3093.0,1.99562707]
[1641911382852,0.00113685,3093.1,3093.0,1.99562707]
[1641911383299,0.00113685,3093.1,3093.0,2.85125607]
[1641911384101,0.00113685,3093.1,3092.6,0.80975527]
[1641911384102,0.00113685,3093.1,3092.6,0.00170527]
[1641911384603,0.00113685,3093.1,3091.4,0.00852635]
[1641911384604,0.04646542,3093.0,3091.4,0.00852635]
[1641911384800,0.00113685,3093.1,3091.4,0.00852635]
[1641911385002,1.08346403,3092.9,3092.2,0.86628601]
[1641911385202,0.00113685,3093.1,3092.5,1.54680602]
[1641911385403,0.00113685,3093.1,3092.3,0.00341054]
[1641911385606,0.00113685,3093.1,3092.3,0.81159594]
[1641911385903,0.00113685,3093.1,3092.4,0.00284212]
[1641911386310,5.99910825,3092.9,3092.6,0.80806]
[1641911386607,5.99910825,3092.9,3092.7,1.61716305]
[1641911386804,0.00113685,3093.1,3092.8,1.07975633]
[1641911387453,5.09193551,3093.0,3092.8,1.07975633]
[1641911387653,5.09193551,3093.0,3092.7,0.00113685]
[1641911388054,0.00113685,3093.1,3092.7,1.33500182]
[1641911388855,5.09307236,3093.1,3092.1,0.00454739]
[1641911389056,5.09307236,3093.1,3091.1,3.93078]
[1641911389057,2.93798054,3093.0,3091.1,3.93078]
[1641911389256,0.01216238,3092.3,3092.0,0.00511581]
[1641911389455,0.44600532,3092.2,3092.0,1.581e-05]
[1641911389657,0.73247374,3092.2,3092.0,1.581e-05]
[1641911389855,6.7551,3092.1,3092.0,1.581e-05]
[1641911390053,7.1431,3092.1,3092.0,1.581e-05]
[1641911390255,6.75,3092.1,3092.0,1.581e-05]
[1641911390454,6.01127063,3092.3,3092.0,1.581e-05]
[1641911390654,5.99910825,3092.3,3092.0,1.581e-05]
[1641911390906,5.99910825,3092.3,3092.0,1.47871449]
[1641911390907,0.00566842,3092.2,3092.0,1.47871449]
[1641911391303,5.99910825,3092.3,3092.1,0.83298369]
[1641911391706,0.96808423,3092.2,3092.1,0.83298369]
[1641911391901,0.96808423,3092.2,3091.5,3.55463971]
[1641911391902,0.9624,3092.1,3091.5,3.55463971]
[1641911392103,0.9624,3091.6,3091.5,3.84607896]
[1641911392301,0.0001,3091.6,3091.5,2.19590246]
[1641911392502,0.00227369,3091.6,3091.5,3.57627279]
[1641911392704,0.00227369,3091.6,3091.5,1.12627279]
[1641911393302,0.00227369,3091.6,3091.4,1.61685]
[1641911393504,0.00227369,3091.6,3091.5,0.80841]
[1641911393702,0.2719,3092.4,3090.9,4.69941461]
[1641911393905,0.2719,3092.4,3090.9,1.61712]
[1641911394101,0.00170527,3091.5,3091.0,0.00113685]
[1641911394303,0.00170527,3091.5,3091.0,0.55029784]
[1641911394547,0.00113685,3091.4,3091.1,2.38002528]
[1641911394750,0.00113685,3091.4,3091.1,1.15056071]
[1641911394948,0.82146156,3092.1,3091.0,0.55029784]
[1641911394949,3.20007921,3091.9,3091.0,0.55029784]
[1641911395150,1.2455,3092.0,3091.0,0.55029784]
[1641911395348,0.00341054,3091.8,3091.0,0.55029784]
[1641911395547,0.00397896,3091.9,3091.0,0.00113685]
[1641911395747,0.00284212,3091.7,3091.0,1.11556783]
[1641911395949,0.93951366,3091.8,3091.2,1.04099693]
[1641911396156,0.00227369,3091.6,3090.6,0.80871]
[1641911396449,0.93610312,3091.8,3090.7,0.00284212]
[1641911396450,0.00284212,3091.7,3090.7,0.00284212]
[1641911396850,0.00227369,3091.6,3090.7,0.00284212]
[1641911397050,0.00227369,3091.6,3090.8,0.5492475]
[1641911397250,0.00284212,3091.7,3091.1,1.02116398]
[1641911397449,0.00284212,3091.7,3091.4,1.41508693]
[1641911397649,0.00227369,3091.6,3091.0,0.80862]
[1641911397849,0.00227369,3091.6,3090.9,0.00170527]
[1641911398051,1.0,3091.7,3090.9,0.00170527]
[1641911398310,1.3,3091.7,3090.9,0.00170527]
[1641911398507,0.89572717,3091.4,3090.9,0.00170527]
[1641911398711,0.80894,3091.5,3090.5,1.12627234]
[1641911398712,0.01232537,3091.2,3090.5,1.12627234]
[1641911399008,0.01232537,3091.2,3090.6,0.00341054]
[1641911399306,0.01232537,3091.2,3090.7,1.35011943]
[1641911399606,0.388,3091.3,3090.8,0.00227369]
[1641911399807,2.7454985,3091.1,3090.8,0.00227369]
[1641911400005,2.7454985,3091.1,3090.2,2.90685189]
[1641911400207,2.7454985,3091.1,3090.2,3.85497632]
[1641911400411,0.00113685,3091.4,3090.5,6.75]
[1641911400607,0.00113685,3091.4,3090.6,2.90116766]
[1641911400806,1.5187429,3091.8,3091.1,6.75]
[1641911400807,0.42247975,3091.8,3091.1,6.75]
[1641911401008,2.27781894,3092.1,3091.2,2.80116766]
[1641911401208,0.388,3093.4,3091.4,6.76288265]
[1641911401209,7.42349102,3092.4,3091.4,6.76288265]
[1641911401410,7.42349102,3092.4,3092.3,1.03162426]
[1641911402047,3.14604056,3093.1,3093.0,1.1045097]
[1641911402351,3.03709192,3093.9,3093.0,1.1045097]
[1641911402750,0.85600716,3093.8,3092.2,3.2029919]
[1641911402950,0.85600716,3093.8,3091.8,1.61661]
[1641911402951,0.01258309,3093.6,3091.8,1.61661]
[1641911403151,0.0124114,3092.7,3091.0,2.8793371]
[1641911403351,0.05344062,3092.5,3091.0,2.8793371]
[1641911403648,0.05344062,3092.5,3091.5,1.43671953]
[1641911403847,0.388,3092.6,3091.6,1.02429915]
[1641911404051,0.388,3092.6,3092.1,3.2]
[1641911404649,3.7,3092.5,3091.6,1.02429915]
[1641911404851,1.13232372,3092.3,3091.6,1.02429915]
[1641911405049,0.80862,3092.5,3091.6,1.02429915]
[1641911405249,0.388,3092.6,3091.6,1.02429915]
[1641911405452,0.388,3092.6,3090.8,0.16671988]
[1641911405453,0.06904765,3092.5,3090.8,0.16671988]
[1641911405650,0.388,3092.6,3090.8,0.16671988]
[1641911405651,0.01292454,3092.0,3090.8,0.16671988]
[1641911405907,0.388,3091.9,3090.8,0.16671988]
[1641911406104,0.80892,3091.5,3090.8,0.16671988]
[1641911406304,1.1720183,3091.4,3090.8,1.33100069]
[1641911406509,0.388,3091.9,3091.1,1.26234772]
[1641911406714,0.388,3092.2,3091.1,1.26234772]
[1641911406905,0.388,3092.2,3092.1,1.15981398]
[1641911407107,3.03709192,3092.5,3092.1,1.15981398]
[1641911407504,3.03709192,3092.5,3091.2,2.42491]
[1641911407706,3.79514297,3093.0,3090.8,1.78385988]
[1641911407707,0.388,3093.0,3090.8,1.78385988]
[1641911407906,0.01080004,3092.4,3090.9,2.89689648]
[1641911408305,0.01023162,3092.3,3091.0,1.61693]
[1641911408506,0.01023162,3092.3,3091.8,1.44008327]
[1641911408706,0.00966319,3092.2,3091.9,0.85735008]
[1641911409210,0.00909477,3092.1,3091.9,0.85735008]
[1641911409682,0.00852635,3092.0,3091.9,0.85735008]
[1641911409872,0.00852635,3092.0,3091.2,1.61693]
[1641911410070,0.00852635,3092.0,3090.9,0.80865]
[1641911410271,0.01243169,3092.4,3090.9,0.80865]
[1641911410272,0.00795792,3091.9,3090.9,0.80865]
[1641911410570,0.0073895,3091.8,3090.9,0.80865]
[1641911410771,0.0073895,3091.8,3090.9,1.19665]
[1641911410971,0.00682108,3091.7,3091.3,0.8083528]
[1641911411170,0.00682108,3091.7,3091.4,0.9971277]
[1641911411370,1.51557567,3092.6,3091.5,6.75]
[1641911411572,1.51557567,3092.6,3091.9,1.6164]
[1641911411779,3.31789192,3093.1,3092.5,1.13490541]
[1641911411780,1.51557567,3092.8,3092.5,1.13490541]
[1641911411971,1.51557567,3092.8,3092.5,1.98570541]
[1641911412171,1.51557567,3092.8,3092.6,0.95344914]
[1641911412172,1.52239676,3092.8,3092.6,0.95344914]
[1641911412372,0.00682109,3092.8,3092.6,1.76164914]
[1641911412672,5.06181987,3094.2,3092.8,1.61592]
[1641911412673,2.28443999,3093.6,3092.8,1.61592]
[1641911413072,2.28443999,3093.6,3093.5,1.46812178]
[1641911413303,2.28443999,3093.6,3093.5,2.3424794]
[1641911413501,2.28898737,3093.6,3093.5,4.9924794]
[1641911413703,2.28898737,3093.6,3093.5,2.3424794]
[1641911413907,0.00454738,3093.6,3093.5,1.05312481]
[1641911414107,0.00454738,3093.6,3093.4,0.8079]
[1641911414108,0.00454738,3093.6,3093.2,1.61586]
[1641911414306,0.00454738,3093.6,3092.5,5.32080648]
[1641911414502,0.00397896,3093.5,3093.4,0.35341417]
[1641911414902,0.00397896,3093.5,3093.4,1.83316952]
[1641911415105,0.00397896,3093.5,3093.0,4.25]
[1641911415303,0.00397896,3093.5,3092.9,0.35341417]
[1641911415304,0.00397896,3093.5,3093.1,1.61592]
[1641911415505,0.00341054,3093.4,3092.9,1.96920417]
[1641911415704,0.0458123,3093.3,3092.9,0.35341417]
[1641911415909,0.00284211,3093.3,3092.9,0.35341417]
[1641911416105,0.00227369,3093.2,3092.9,0.35341417]
[1641911416504,0.00170527,3093.1,3092.9,0.35098763]
[1641911416906,0.00113684,3093.0,3092.9,0.35098763]
[1641911417348,0.00113684,3093.0,3092.9,0.89999513]
[1641911418749,0.00113684,3093.0,3092.9,0.35098763]
[1641911419151,0.00113684,3093.0,3092.9,1.77040486]
[1641911419853,0.00113684,3093.0,3092.6,0.00113685]
[1641911420249,0.00113684,3093.0,3092.9,0.35098763]
[1641911420453,0.00113684,3093.0,3091.8,0.00568424]
[1641911420454,6.75,3092.9,3091.8,0.00568424]
[1641911420653,1.06263129,3092.8,3091.8,0.00568424]
[1641911420906,0.80886,3091.8,3091.0,0.01023163]
[1641911421107,0.80886,3091.8,3090.8,0.01136847]
[1641911421108,0.84308896,3091.1,3090.8,0.01136847]
[1641911421503,0.84308896,3091.1,3090.6,0.01250532]
[1641911421703,0.80886,3091.8,3090.9,0.5493258]
[1641911421901,2.32893446,3091.8,3091.0,1.38224909]
[1641911422104,2.32893446,3091.8,3091.0,1.39248072]
[1641911422304,2.32893446,3091.8,3091.1,0.0096632]
[1641911422706,2.32893446,3091.8,3090.6,0.80874]
[1641911422707,3.58718983,3090.9,3090.6,0.80874]
[1641911422903,0.82952606,3091.3,3090.7,0.98672101]
[1641911423104,0.82952606,3091.3,3091.2,0.54931478]
[1641911423505,1.21752606,3091.3,3091.2,0.54931478]
[1641911423904,0.82952606,3091.3,3091.2,0.54931478]
[1641911424103,2.34960052,3091.3,3091.2,0.54931478]
[1641911424548,2.34960052,3091.3,3090.7,0.00170527]
[1641911424754,0.82952606,3091.3,3090.8,0.80878]
[1641911424950,0.00113685,3091.2,3090.8,0.80878]
[1641911425150,0.00113685,3091.2,3090.7,0.00170527]
[1641911426351,0.00113685,3091.2,3090.6,0.80881]
[1641911426552,0.00113685,3091.2,3090.9,1.17094315]
[1641911426756,0.00113685,3091.2,3091.0,2.85262432]
[1641911426951,1.52007446,3091.4,3091.1,4.85]
[1641911427152,1.52007446,3091.8,3091.1,4.85]
[1641911427356,1.52007446,3091.8,3091.4,0.80841]
[1641911427652,1.52007446,3091.8,3091.5,1.37585616]
[1641911428052,1.52007446,3092.3,3092.0,1.13181101]
[1641911428305,1.52007446,3092.3,3091.9,1.6167]
[1641911428502,1.52007446,3092.3,3092.0,0.80835]
[1641911428703,1.52007446,3092.5,3092.1,0.80834]
[1641911428902,1.52007446,3092.5,3092.2,0.91459141]
[1641911429103,0.00454739,3092.4,3092.2,0.91459141]
[1641911429303,0.00454739,3092.4,3092.2,1.24881991]
[1641911429503,0.00397897,3092.3,3092.2,1.24881991]
[1641911430008,0.00397897,3092.3,3092.0,4.00835]
[1641911430204,0.05186545,3092.2,3092.0,3.2]
[1641911430405,0.96358327,3092.1,3092.0,3.2]
[1641911430705,0.00284212,3092.1,3092.0,3.2]
[1641911431105,0.00284212,3092.1,3092.0,7.49931965]
[1641911431308,1.52007446,3092.7,3092.0,7.88731965]
[1641911431506,1.52007446,3092.7,3092.4,0.97298292]
[1641911431706,0.00284212,3092.6,3092.5,5.0932516]
[1641911432049,4.66607124,3093.4,3092.5,2.2176516]
[1641911432050,0.00682108,3093.3,3092.5,2.2176516]
[1641911432451,0.00625266,3093.2,3092.5,2.2176516]
[1641911432655,1.04368616,3093.2,3092.5,2.2176516]
[1641911432851,0.04763237,3093.0,3092.1,1.61615]
[1641911433051,0.00568424,3093.1,3092.1,1.61615]
[1641911433250,0.00454739,3092.9,3092.1,1.61615]
[1641911433450,1.0374335,3093.2,3092.1,1.61615]
[1641911433451,1.52519027,3093.0,3092.1,1.61615]
[1641911433652,0.00397897,3092.8,3092.4,0.80826]
[1641911433852,0.00454739,3092.9,3092.5,1.22915914]
[1641911434057,0.00341054,3092.7,3092.5,1.22915914]
[1641911434252,0.00397897,3092.8,3092.5,1.22915914]
[1641911434455,1.52007446,3093.1,3092.6,0.8082]
[1641911434655,0.00341054,3092.7,3092.5,2.16958364]
[1641911434853,0.00511581,3093.0,3092.2,1.61641]
[1641911435055,0.00511581,3093.0,3092.0,3.2]
[1641911435056,0.01202382,3092.8,3092.0,3.2]
[1641911435258,0.01202382,3092.8,3092.0,3.18912063]
[1641911435453,0.00341054,3092.7,3092.0,3.18912063]
[1641911435910,0.00341054,3092.7,3092.0,3.18024213]
[1641911435911,1.6172813,3092.4,3092.0,3.18024213]
[1641911436113,0.36915539,3092.3,3092.0,3.18024213]
[1641911436310,0.30113685,3092.3,3092.0,3.18024213]
[1641911436515,0.01259969,3092.1,3090.8,2.85262432]
[1641911436810,0.01259969,3092.1,3090.6,3.23453]
[1641911437011,0.01259969,3092.1,3091.5,1.08001334]
[1641911437012,1.04421933,3092.1,3091.5,1.08001334]
[1641911437211,2.7459013,3092.0,3091.5,1.08001334]
[1641911437411,2.7459013,3092.0,3091.6,0.00284212]
[1641911437613,2.7459013,3092.0,3091.9,1.19322689]
[1641911437815,2.7459013,3092.0,3091.6,0.00284212]
[1641911438013,0.00113685,3092.3,3092.1,5.3]
[1641911438216,2.28504776,3092.4,3091.9,0.2743]
[1641911438217,0.76611015,3092.4,3091.9,0.2743]
[1641911438416,0.76611015,3092.4,3092.0,0.82985089]
[1641911438612,3.03709192,3092.9,3092.0,0.83155616]
[1641911438815,3.03709192,3092.9,3092.7,1.41080804]
[1641911439012,8.20777895,3093.8,3092.9,6.75]
[1641911439213,5.0,3095.0,3093.0,2.85262432]
[1641911439214,4.11757011,3093.6,3093.0,2.85262432]
[1641911439412,4.11757011,3093.6,3092.7,0.2675]
[1641911439660,4.11757011,3093.6,3092.4,2.81204]
[1641911439661,4.11757011,3093.6,3092.4,0.388]
[1641911439861,0.98297043,3094.0,3092.4,0.388]
[1641911440059,0.98297043,3094.0,3093.2,0.80801]
[1641911440261,0.00909477,3093.9,3093.2,0.80801]
[1641911440661,1.07069156,3093.5,3092.9,0.97893091]
[1641911440859,1.07069156,3093.5,3092.6,1.61625]
[1641911441060,0.00625266,3093.4,3092.6,1.61625]
[1641911441262,0.00625266,3093.4,3092.9,1.61614]
[1641911441464,0.00625266,3093.4,3092.3,0.1768]
[1641911441465,0.00568423,3093.3,3092.5,1.45540968]
[1641911441661,0.81405423,3093.3,3092.5,1.45540968]
[1641911441860,0.00511581,3093.2,3092.5,1.45540968]
[1641911442262,0.80837,3093.3,3092.5,1.45540968]
[1641911442263,0.00454739,3093.1,3092.5,1.45540968]
[1641911442460,0.00454739,3093.1,3092.5,0.87791463]
[1641911442660,0.00397896,3093.0,3092.3,0.1768]
[1641911443063,0.00341054,3092.9,3092.3,0.1768]
[1641911443304,0.00341054,3092.9,3092.5,1.2220426]
[1641911443504,0.00284212,3092.8,3092.5,1.2220426]
[1641911443805,0.00227369,3092.7,3092.6,1.09726403]
[1641911444003,0.00227369,3092.7,3092.5,2.0303026]
[1641911444204,0.00227369,3092.7,3092.5,1.2220426]
[1641911444406,0.00170527,3092.6,3092.5,1.2220426]
[1641911445009,0.00170527,3092.6,3092.5,2.07128048]
[1641911445409,0.00170527,3092.6,3092.5,0.84923788]
[1641911445611,0.00170527,3092.6,3092.3,0.1768]
[1641911446008,0.00113685,3092.5,3092.3,0.1768]
[1641911446408,2.85660328,3093.0,3092.3,0.1768]
[1641911446608,0.00397896,3093.0,3092.3,0.1768]
[1641911446809,0.8085205,3092.8,3092.3,0.1768]
[1641911447065,0.00341054,3092.9,3092.3,0.1768]
[1641911447256,0.00227369,3092.7,3092.3,0.1768]
[1641911447454,0.00284212,3092.8,3092.3,0.1768]
[1641911447653,0.00170527,3092.6,3092.3,0.1768]
[1641911447854,0.00227369,3092.7,3092.3,0.1768]
[1641911448052,0.00113685,3092.5,3092.3,0.1768]
[1641911448259,1.84582361,3093.1,3092.3,0.1768]
[1641911448260,0.00170527,3092.6,3092.5,1.48467674]
[1641911448454,0.00397896,3093.0,3092.5,1.48467674]
[1641911448653,0.00170527,3092.6,3092.5,1.48467674]
[1641911448853,0.00341054,3092.9,3092.5,1.48467674]
[1641911449068,1.53291017,3093.3,3092.6,1.11090713]
[1641911449255,2.34126017,3093.3,3092.6,1.11090713]
[1641911449460,0.8082737,3093.6,3092.7,2.91660232]
[1641911449461,0.00511581,3093.2,3092.7,2.91660232]
[1641911449656,0.00511581,3093.2,3092.6,1.11090713]
[1641911449855,3.06701267,3093.9,3092.7,5.05]
[1641911450058,3.01701267,3093.9,3093.3,1.28602611]
[1641911450257,3.7991,3094.7,3093.3,1.28602611]
[1641911450258,3.14589765,3094.4,3093.3,1.28602611]
[1641911450457,1.1195434,3094.0,3093.4,0.83487832]
[1641911450656,1.12465921,3094.0,3093.4,0.83487832]
[1641911450912,0.00511581,3094.0,3093.4,0.83487832]
[1641911451609,0.00511581,3094.0,3092.8,0.00170527]
[1641911451610,0.01276207,3093.9,3092.8,0.00170527]
[1641911452011,0.00397896,3093.8,3092.5,0.00341054]
[1641911452208,0.00397896,3093.8,3092.1,4.53311232]
[1641911452209,0.04701006,3093.7,3092.2,0.00511582]
[1641911452409,0.00341054,3093.7,3092.2,0.00511582]
[1641911452710,0.00284211,3093.6,3092.7,1.77731146]
[1641911453109,0.00227369,3093.5,3092.8,0.00170527]
[1641911453514,0.00170527,3093.4,3092.8,0.00170527]
[1641911453912,0.00113684,3093.3,3092.9,0.54906812]
[1641911454310,1.13851185,3093.5,3092.9,0.54906812]
[1641911454754,0.0376013,3093.4,3092.9,0.54906812]
[1641911454954,0.00170527,3093.4,3092.9,0.54906812]
[1641911455155,0.00113684,3093.3,3092.8,0.00170527]
[1641911455555,0.00170527,3093.4,3092.5,0.96651452]
[1641911455754,0.00170527,3093.4,3092.9,1.38621847]
[1641911455955,0.00113684,3093.3,3092.9,1.38621847]
[1641911456355,0.00625265,3094.2,3092.9,1.38621847]
[1641911456556,0.90694714,3093.2,3092.6,0.00284212]
[1641911457257,0.90694714,3093.2,3092.4,0.00397897]
[1641911457655,0.90694714,3093.2,3092.2,0.91510758]
[1641911457656,0.01282363,3093.7,3092.6,1.48207402]
[1641911457856,6.07448077,3094.0,3093.2,1.44421653]
[1641911457857,4.06981997,3094.0,3093.2,1.44421653]
[1641911458056,4.06981997,3094.0,3093.2,2.25226653]
[1641911458057,0.00284211,3093.6,3093.2,2.25226653]
[1641911458303,4.36981997,3094.0,3093.2,2.25226653]
[1641911458304,2.30333694,3093.8,3093.2,2.25226653]
[1641911458507,0.00227369,3093.5,3093.2,2.25226653]
[1641911458708,0.00341054,3093.7,3093.3,0.87886977]
[1641911458907,0.00170527,3093.4,3093.3,0.87886977]
[1641911459107,0.00284211,3093.6,3093.1,0.80793]
[1641911459306,2.30333694,3094.2,3092.7,0.0022737]
[1641911459307,0.06512766,3093.3,3092.7,0.0022737]
[1641911459506,0.00227369,3093.5,3092.7,0.0022737]
[1641911459706,1.54354828,3094.1,3092.4,0.00397897]
[1641911459904,0.00170527,3093.4,3092.4,0.00397897]
[1641911460105,3.85842336,3093.3,3093.2,3.2]
[1641911460306,3.8595602,3093.3,3093.2,3.2]
[1641911460912,0.05975495,3093.1,3092.3,0.91519119]
[1641911461107,1.65399145,3092.9,3092.3,0.91519119]
[1641911461311,0.388,3092.8,3092.4,0.00397897]
[1641911461513,0.388,3092.8,3092.3,0.91519119]
[1641911461514,0.688,3092.8,3092.3,0.91519119]
[1641911461708,0.00170527,3092.7,3092.3,0.91519119]
[1641911461910,0.388,3092.6,3092.3,0.91519119]
[1641911462154,0.388,3092.6,3091.6,1.05472284]
[1641911462155,2.30655685,3092.6,3091.6,1.05472284]
[1641911462355,2.30655685,3092.6,3091.4,0.54927526]
[1641911462356,3.11526345,3092.6,3091.4,0.54927526]
[1641911462554,3.11526345,3092.6,3091.7,0.00397896]
[1641911462555,1.3,3092.5,3091.7,0.00397896]
[1641911462755,2.30655685,3092.6,3091.7,0.00397896]
[1641911463055,0.80882,3092.2,3091.7,0.00397896]
[1641911463255,0.8087978,3092.1,3091.7,0.00397896]
[1641911463455,0.8088,3091.9,3091.8,0.54927526]
[1641911463654,7.8968,3091.9,3091.8,0.54927526]
[1641911463860,8.1968,3091.9,3091.8,0.5526858]
[1641911464156,9.1968,3091.9,3091.8,0.4876858]
[1641911464357,10.00568,3091.9,3091.8,0.4876858]
[1641911464754,9.1968,3091.9,3091.8,0.00341054]
[1641911465355,0.8087869,3091.7,3090.6,1.4513596]
[1641911465555,1.6176069,3091.7,3090.7,0.0096632]
[1641911465808,3.5250768,3091.6,3090.7,0.0096632]
[1641911466009,1.0,3091.5,3090.7,0.0096632]
[1641911466213,0.9363978,3091.0,3090.7,0.0096632]
[1641911466414,0.89580517,3090.9,3090.7,0.0096632]
[1641911466610,0.89580517,3090.9,3090.1,0.01307374]
[1641911466611,7.088,3090.8,3090.1,0.01307374]
[1641911466812,2.4272993,3090.6,3089.8,0.01477901]
[1641911467010,0.3,3090.5,3089.8,0.01477901]
[1641911467211,1.02110636,3090.0,3089.8,0.01477901]
[1641911467411,1.9012903,3090.0,3089.8,0.01477901]
[1641911467610,1.9012903,3090.0,3089.5,0.01648428]
[1641911468010,1.0921,3090.0,3089.5,0.01648428]
[1641911468213,1.0921,3090.0,3089.0,1.58572113]
[1641911468609,1.0921,3090.0,3088.7,6.09]
[1641911468610,0.00341055,3089.9,3089.1,0.00113684]
[1641911468813,1.08445508,3089.8,3089.1,0.00113684]
[1641911469115,1.08445508,3089.8,3088.6,0.007]
[1641911469116,0.0022737,3089.7,3088.7,0.00341054]
[1641911469313,0.80935,3089.5,3088.8,1.2839594]
[1641911469560,0.03880473,3089.6,3088.8,1.2839594]
[1641911469561,0.00170527,3089.6,3088.8,1.2839594]
[1641911469854,0.00113685,3089.5,3088.9,0.00227369]
[1641911470353,1.6182586,3090.4,3088.6,0.007]
[1641911470354,1.13198269,3090.2,3089.6,0.97474377]
[1641911470653,0.8091675,3089.9,3088.7,3.20341054]
[1641911470855,0.388,3089.8,3089.0,1.49212572]
[1641911471056,0.00284212,3089.8,3089.6,1.09143793]
[1641911471256,0.0022737,3089.7,3088.8,2.93411611]
[1641911471452,0.0022737,3089.7,3089.3,0.80905]
[1641911471659,7.65194089,3090.9,3089.5,6.55887]
[1641911471660,0.00170527,3089.6,3089.5,6.55887]
[1641911471860,0.00170527,3089.6,3089.5,7.71105061]
[1641911472054,0.00170527,3089.6,3089.5,1.96105061]
[1641911472256,0.00170527,3089.6,3089.5,3.05682837]
[1641911472457,0.00170527,3089.6,3089.4,1.61779]
[1641911472656,0.03714827,3089.5,3088.9,0.00227369]
[1641911472857,0.03828512,3089.5,3088.9,0.00227369]
[1641911473154,0.03828512,3089.5,3088.8,0.00284211]
[1641911473406,0.00113685,3089.5,3088.8,0.00284211]
[1641911473602,0.8290751,3089.2,3088.9,1.54763699]
[1641911474104,0.00113685,3089.5,3089.0,0.00170527]
[1641911474703,0.8092692,3089.4,3088.7,0.00341054]
[1641911474904,0.3,3089.3,3088.7,0.00341054]
[1641911475105,3.78956547,3089.2,3088.7,0.00341054]
[1641911475304,0.40098014,3089.1,3088.7,0.00341054]
[1641911475504,1.51055014,3089.1,3088.7,0.00341054]
[1641911475705,0.03568368,3089.0,3088.7,0.00341054]
[1641911476003,0.688,3088.9,3088.7,0.00341054]
[1641911476203,7.088,3088.8,3088.7,0.00341054]
[1641911476402,7.088,3088.8,3088.3,0.85661388]
[1641911476403,6.2,3088.7,3088.3,0.85661388]
[1641911476603,6.2,3088.7,3088.3,0.08752402]
[1641911476604,6.75,3088.4,3088.3,0.08752402]
[1641911476802,6.75,3088.4,3087.4,0.00435504]
[1641911476803,1.05158977,3087.7,3087.4,0.00435504]
[1641911477064,0.3,3087.7,3087.4,0.00435504]
[1641911477251,1.61968,3088.2,3087.3,0.94936386]
[1641911477456,2.4291166,3088.8,3087.6,0.66896889]
[1641911477457,0.24340662,3088.7,3087.6,0.66896889]
[1641911477654,0.24340662,3088.7,3087.5,0.80955]
[1641911477655,0.00284211,3088.1,3087.5,0.80955]
[1641911477851,0.8095142,3088.4,3087.4,0.00113685]
[1641911478052,0.00227369,3088.0,3087.6,0.97379649]
[1641911478254,0.00397896,3088.3,3087.0,0.00341055]
[1641911478452,1.01086675,3088.4,3086.6,2.42857]
[1641911478453,3.95,3087.8,3086.6,2.39267091]
[1641911478653,1.01086675,3088.4,3086.8,1.32267627]
[1641911478654,0.00341054,3088.2,3086.8,1.32267627]
[1641911478854,0.0622361,3087.5,3086.7,0.00170527]
[1641911479156,0.3,3087.6,3086.7,0.00170527]
[1641911479456,1.10079094,3087.1,3086.8,0.00113684]
[1641911479660,0.8851,3087.1,3086.8,0.00113684]
[1641911479854,0.8851,3087.1,3086.5,1.09198585]
[1641911480154,0.8851,3087.1,3086.5,1.08108963]
[1641911480354,0.8851,3087.1,3086.6,0.00227369]
[1641911480355,0.01209192,3086.9,3086.6,0.00227369]
[1641911480839,0.01209192,3086.9,3086.8,3.2]
[1641911481034,3.988,3086.9,3086.8,3.2]
[1641911481236,3.988,3086.9,3086.8,3.20113684]
[1641911481437,0.388,3086.9,3086.8,3.20113684]
[1641911481636,0.388,3086.9,3086.8,0.00113684]
[1641911481837,0.388,3086.9,3086.1,0.05005]
[1641911481838,6.638,3086.9,3086.1,0.05005]
[1641911482137,6.638,3086.9,3085.5,0.93687301]
[1641911482138,0.06889003,3086.4,3085.5,0.93687301]
[1641911482338,0.388,3086.3,3085.5,0.93687301]
[1641911482535,0.288,3086.3,3086.2,0.00341054]
[1641911483136,0.288,3086.3,3085.8,1.32629184]
[1641911483336,0.388,3086.9,3085.9,0.00511581]
[1641911483537,0.8851,3087.1,3085.9,2.84869609]
[1641911483837,0.8851,3087.1,3086.0,1.11723098]
[1641911483838,0.00113684,3087.0,3086.0,1.11723098]
[1641911484038,0.00113684,3087.0,3086.6,1.13053462]
[1641911484438,5.65610056,3087.6,3086.6,1.13053462]
[1641911484652,1.0,3087.2,3086.8,1.61907]
[1641911484857,1.0,3087.2,3086.9,1.08676439]
[1641911485252,0.3971,3087.2,3086.9,1.08676439]
[1641911485453,0.3971,3087.2,3087.1,1.48700562]
[1641911485753,0.39823685,3087.2,3087.1,1.48700562]
[1641911487758,0.39823685,3087.2,3085.9,18.81]
[1641911487759,0.39823685,3087.2,3087.0,1.09130797]
[1641911487956,0.39994212,3087.2,3087.0,1.09130797]
[1641911488157,0.0022737,3087.1,3087.0,1.09130797]
[1641911488407,3.14659088,3087.9,3087.1,6.75]
[1641911488603,2.81762424,3088.5,3088.0,1.53104461]
[1641911488802,0.00341054,3087.7,3087.2,1.61875]
[1641911489010,0.00341054,3087.7,3087.3,0.82802928]
[1641911489202,0.00284212,3087.6,3087.3,0.82802928]
[1641911489606,0.62024222,3089.1,3087.6,6.75]
[1641911489804,0.62024222,3089.1,3087.5,6.76260915]
[1641911489805,5.1197522,3090.3,3088.8,0.01292029]
[1641911489806,1.47208318,3089.2,3088.8,0.01292029]
[1641911490010,1.07497128,3089.1,3088.8,0.01292029]
[1641911490203,1.47208318,3089.2,3088.1,0.388]
[1641911490404,0.00852635,3089.0,3088.1,0.388]
[1641911490809,0.00795793,3088.9,3088.1,0.388]
[1641911491006,0.00795793,3088.9,3088.8,8.09406714]
[1641911491306,0.01275195,3090.3,3090.0,1.27864815]
[1641911491504,3.83652821,3091.0,3088.9,2.81762424]